bitfinex/quotes_BTCUSD_20250829
["timestamp","ask_amount","ask_price","bid_price","bid_amount"]
[1756428674879,0.58566081,112430.0,112420.0,0.00509]
[1756428675097,0.58566081,112430.0,112420.0,0.34834724]
[1756428675310,0.65218562,112430.0,112420.0,0.00609]
[1756428675514,0.65218562,112430.0,112420.0,0.34834724]
[1756428675721,0.6522117,112430.0,112420.0,0.34834724]
[1756428676766,0.65321152,112430.0,112420.0,0.00609]
[1756428676989,0.83109998,112430.0,112420.0,0.00609]
[1756428677209,0.65321152,112430.0,112420.0,0.34834724]
[1756428678301,0.65321152,112430.0,112420.0,0.34734724]
[1756428678946,0.65317152,112430.0,112420.0,0.34734724]
[1756428680336,0.62923507,112430.0,112420.0,0.34734724]
[1756428680773,0.40967026,112430.0,112420.0,0.52525152]
[1756428680982,0.56263026,112430.0,112420.0,0.52525152]
[1756428681360,0.40967026,112430.0,112420.0,0.52525152]
[1756428681520,0.56255026,112430.0,112420.0,0.52525152]
[1756428681726,0.56255026,112430.0,112420.0,0.34734724]
[1756428682063,0.56255026,112430.0,112420.0,0.52525152]
[1756428682936,0.56155026,112430.0,112420.0,0.52525152]
[1756428683159,0.56155026,112430.0,112420.0,0.52625152]
[1756428683746,0.20248575,112430.0,112420.0,0.52625152]
[1756428683945,0.20236575,112430.0,112420.0,0.52625152]
[1756428684136,0.04960575,112430.0,112420.0,0.52328152]
[1756428684550,0.02285675,112430.0,112420.0,0.52328152]
[1756428685096,0.02285675,112430.0,112420.0,0.67604152]
[1756428685259,0.02285675,112430.0,112420.0,0.52328152]
[1756428685870,0.02285675,112430.0,112420.0,0.00312]
[1756428686071,0.07108786,112430.0,112420.0,0.18401428]
[1756428686285,0.10610052,112430.0,112420.0,0.18401428]
[1756428686463,0.10407052,112430.0,112420.0,0.00611]
[1756428686665,0.08744476,112430.0,112420.0,0.18401428]
[1756428686882,0.10407214,112430.0,112420.0,0.18401428]
[1756428687081,0.10407214,112430.0,112420.0,0.00611]
[1756428687886,0.10407373,112430.0,112420.0,0.00611]
[1756428688092,0.10407373,112430.0,112420.0,0.18401428]
[1756428689076,0.04961163,112430.0,112420.0,0.18401428]
[1756428689277,0.04961163,112430.0,112420.0,0.67891152]
[1756428689502,0.18608069,112450.0,112440.0,0.17787264]
[1756428689503,0.02938437,112450.0,112440.0,0.17787264]
[1756428689684,0.25930595,112450.0,112440.0,0.52523988]
[1756428689884,0.10646595,112450.0,112440.0,0.33582264]
[1756428690112,0.07972195,112450.0,112440.0,0.67807988]
[1756428690292,0.05224997,112450.0,112440.0,0.52523988]
[1756428690674,0.05424997,112450.0,112440.0,0.52523988]
[1756428691360,0.05424997,112450.0,112440.0,0.18298264]
[1756428691567,0.05424997,112450.0,112440.0,0.52623988]
[1756428692077,0.05224997,112450.0,112440.0,0.52623988]
[1756428692622,0.05224997,112450.0,112440.0,0.18398264]
[1756428693472,0.41746327,112450.0,112440.0,0.00312]
[1756428693663,0.43965164,112450.0,112440.0,0.001]
[1756428693868,0.78190888,112450.0,112440.0,0.001]
[1756428694665,0.78190888,112450.0,112430.0,0.18087462]
[1756428694861,0.15284,112440.0,112430.0,0.18087462]
[1756428695188,0.15284,112440.0,112430.0,0.18299462]
[1756428696221,0.15284,112440.0,112430.0,0.52625186]
[1756428696514,0.15284,112440.0,112430.0,0.18399462]
[1756428696727,0.15487,112440.0,112430.0,0.001]
[1756428697720,0.15792,112440.0,112430.0,0.001]
[1756428697921,0.19988617,112440.0,112430.0,0.001]
[1756428698232,0.26828617,112440.0,112430.0,0.001]
[1756428698455,0.29466072,112440.0,112430.0,0.001]
[1756428698693,0.23011704,112440.0,112430.0,0.001]
[1756428698817,0.38287704,112440.0,112430.0,0.001]
[1756428699030,0.35750249,112440.0,112420.0,0.52016124]
[1756428699240,0.35750249,112440.0,112420.0,0.34524724]
[1756428699445,0.34,112430.0,112410.0,0.53205857]
[1756428699654,0.15268,112420.0,112410.0,0.52316735]
[1756428699878,0.57125988,112430.0,112410.0,0.52528735]
[1756428700081,0.64302328,112430.0,112410.0,0.52528735]
[1756428700303,0.63997328,112430.0,112410.0,0.52528735]
[1756428701221,0.00203,112420.0,112410.0,0.18004011]
[1756428701472,0.00203,112420.0,112410.0,0.34437724]
[1756428701678,0.00203,112420.0,112410.0,0.00511]
[1756428701833,0.00203,112420.0,112410.0,0.34736724]
[1756428702036,0.49268,112420.0,112410.0,0.52628682]
[1756428702516,0.49276,112420.0,112410.0,0.52628682]
[1756428702783,0.49276,112420.0,112410.0,0.52528682]
[1756428702955,0.49276,112420.0,112410.0,0.52728682]
[1756428703150,0.5401686,112420.0,112410.0,0.003]
[1756428703362,0.5401686,112420.0,112410.0,0.34525724]
[1756428703561,0.5401686,112420.0,112410.0,0.34737724]
[1756428704118,0.5401686,112420.0,112410.0,0.34325724]
[1756428704714,0.5432186,112420.0,112410.0,0.002]
[1756428704917,0.58517823,112420.0,112410.0,0.002]
[1756428705151,0.61193123,112420.0,112410.0,0.001]
[1756428705346,0.60888123,112420.0,112410.0,0.001]
[1756428705548,0.60888123,112420.0,112410.0,0.34325724]
[1756428705891,0.61193123,112420.0,112410.0,0.34325724]
[1756428706314,0.61193123,112420.0,112410.0,0.001]
[1756428707244,0.61192224,112420.0,112410.0,0.001]
[1756428707542,0.34,112410.0,112400.0,0.2667]
[1756428707764,0.41205186,112410.0,112400.0,0.61107724]
[1756428708106,0.56485186,112410.0,112400.0,0.61406724]
[1756428708309,0.15292,112410.0,112400.0,0.79202318]
[1756428708518,0.180713,112420.0,112410.0,0.17792011]
[1756428708757,0.22269013,112420.0,112410.0,0.34738724]
[1756428709122,0.22384013,112420.0,112410.0,0.34435724]
[1756428709473,0.28590415,112420.0,112410.0,0.34225724]
[1756428710268,0.37520047,112420.0,112400.0,0.34325724]
[1756428710625,0.37520047,112420.0,112400.0,0.00303]
[1756428710874,0.37520047,112420.0,112410.0,0.34225724]
[1756428711654,0.37420047,112420.0,112410.0,0.34225724]
[1756428712075,0.37520047,112420.0,112410.0,0.34225724]
[1756428712590,0.37420047,112420.0,112410.0,0.34225724]
[1756428712752,0.34,112410.0,112400.0,0.00303]
[1756428712950,0.34,112410.0,112390.0,0.18098054]
[1756428713154,0.34,112410.0,112400.0,0.34225724]
[1756428713422,0.34215,112410.0,112400.0,0.34435724]
[1756428713621,0.368904,112410.0,112400.0,0.34435724]
[1756428714189,0.371894,112410.0,112400.0,0.34325724]
[1756428714393,0.45701166,112410.0,112400.0,0.34325724]
[1756428714600,0.45402166,112410.0,112400.0,0.34325724]
[1756428715209,0.45402166,112410.0,112400.0,0.34535724]
[1756428716033,0.45701166,112410.0,112400.0,0.001]
[1756428716233,0.45402166,112410.0,112400.0,0.34325724]
[1756428717272,0.45402166,112410.0,112400.0,0.34225724]
[1756428717624,0.60714166,112410.0,112400.0,0.34435724]
[1756428718058,0.369904,112410.0,112400.0,0.34435724]
[1756428718298,0.522984,112410.0,112400.0,0.34738724]
[1756428718506,0.522984,112410.0,112400.0,0.34435724]
[1756428719207,0.522944,112410.0,112400.0,0.34435724]
[1756428719900,0.525934,112410.0,112390.0,0.15607]
[1756428720123,0.60806976,112410.0,112400.0,0.34225724]
[1756428720250,0.60806976,112410.0,112400.0,0.34435724]
[1756428720449,0.60802976,112410.0,112400.0,0.34435724]
[1756428720651,0.45502976,112410.0,112400.0,0.34435724]
[1756428720879,0.60802976,112410.0,112400.0,0.34738724]
[1756428721075,0.60802976,112410.0,112400.0,0.34435724]
[1756428721278,0.60802976,112410.0,112400.0,0.0021]
[1756428721482,0.60802976,112410.0,112400.0,0.34435724]
[1756428721710,0.60702976,112410.0,112400.0,0.0021]
[1756428721911,0.60702976,112410.0,112400.0,0.34435724]
[1756428722116,0.60702976,112410.0,112390.0,0.00303]
[1756428722315,0.61101976,112410.0,112400.0,0.34225724]
[1756428722543,0.60794976,112410.0,112400.0,0.34435724]
[1756428722992,0.69823608,112410.0,112390.0,0.34528724]
[1756428723346,0.69823608,112410.0,112390.0,0.34225724]
[1756428723548,0.69923608,112410.0,112390.0,0.34528724]
[1756428723786,0.67248208,112410.0,112390.0,0.34528724]
[1756428723954,0.026756,112400.0,112390.0,0.34528724]
[1756428724332,0.09667981,112400.0,112390.0,0.34738724]
[1756428724537,0.33033208,112410.0,112390.0,0.34738724]
[1756428724745,0.37988439,112410.0,112390.0,0.34738724]
[1756428724951,0.22596439,112410.0,112390.0,0.34738724]
[1756428725161,0.15292,112400.0,112390.0,0.52533901]
[1756428725430,0.15292,112400.0,112390.0,0.52633901]
[1756428725651,0.11605232,112410.0,112390.0,0.52633901]
[1756428725886,0.15288,112400.0,112390.0,0.18408177]
[1756428727061,0.15288,112400.0,112390.0,0.52633901]
[1756428727825,0.15288,112400.0,112390.0,0.52533901]
[1756428728016,0.179636,112410.0,112400.0,0.17793594]
[1756428728246,0.20244976,112410.0,112400.0,0.52532318]
[1756428728887,0.20244976,112410.0,112400.0,0.34738724]
[1756428729714,0.05056976,112410.0,112400.0,0.67812318]
[1756428729954,0.89056976,112410.0,112400.0,0.67812318]
[1756428730138,0.39056976,112410.0,112400.0,0.52532318]
[1756428730347,0.39056976,112410.0,112400.0,0.67820318]
[1756428730923,0.38956976,112410.0,112400.0,0.67820318]
[1756428731128,0.38956976,112410.0,112400.0,0.67920318]
[1756428731615,0.38956976,112410.0,112400.0,0.33694594]
[1756428731823,0.4489515,112410.0,112400.0,0.001]
[1756428732011,0.46807739,112410.0,112400.0,0.001]
[1756428732407,0.46508739,112410.0,112400.0,0.001]
[1756428732623,0.41084565,112410.0,112400.0,0.34325724]
[1756428732828,0.41383565,112410.0,112400.0,0.001]
[1756428733509,0.41383565,112410.0,112400.0,0.34325724]
[1756428733743,0.41383565,112410.0,112400.0,0.34225724]
[1756428733922,0.41084565,112410.0,112400.0,0.34225724]
[1756428734126,0.41084565,112410.0,112400.0,0.34435724]
[1756428734339,0.47050398,112410.0,112400.0,0.34225724]
[1756428734546,0.40869565,112410.0,112400.0,0.52532318]
[1756428734746,0.56249565,112410.0,112400.0,0.52532318]
[1756428734980,0.06969565,112410.0,112400.0,1.02038042]
[1756428735185,0.027756,112410.0,112400.0,1.02038042]
[1756428736037,0.027756,112410.0,112400.0,0.67812318]
[1756428736171,0.001,112410.0,112400.0,0.67812318]
[1756428736376,0.02679867,112420.0,112410.0,0.17792011]
[1756428736550,0.02679867,112420.0,112410.0,0.86756459]
[1756428736551,0.0687774,112420.0,112410.0,0.86756459]
[1756428737464,0.06877681,112420.0,112410.0,0.86756459]
[1756428737659,0.06877525,112420.0,112410.0,0.86756459]
[1756428738231,0.06977525,112420.0,112410.0,0.86756459]
[1756428738445,0.06977525,112420.0,112410.0,1.40735329]
[1756428738649,0.02779867,112420.0,112410.0,1.40735329]
[1756428738861,0.00104767,112420.0,112410.0,1.06509605]
[1756428739068,0.00104767,112420.0,112410.0,0.29228525]
[1756428739292,4.767e-05,112420.0,112410.0,1.13051973]
[1756428739497,4.767e-05,112420.0,112410.0,1.13351973]
[1756428739911,4.767e-05,112420.0,112410.0,1.13359973]
[1756428740117,4.767e-05,112420.0,112410.0,0.97979973]
[1756428740327,4.767e-05,112420.0,112410.0,0.30028525]
[1756428740576,4.767e-05,112420.0,112410.0,1.13355973]
[1756428741048,4.767e-05,112420.0,112410.0,1.13055973]
[1756428741270,4.767e-05,112420.0,112410.0,0.97679973]
[1756428741495,4.767e-05,112420.0,112410.0,1.13555973]
[1756428741999,4.767e-05,112420.0,112410.0,1.13055973]
[1756428742201,4.767e-05,112420.0,112410.0,1.13155973]
[1756428742415,4.767e-05,112420.0,112410.0,0.97779973]
[1756428742622,4.767e-05,112420.0,112410.0,1.13155973]
[1756428742839,4.767e-05,112420.0,112410.0,0.29328525]
[1756428743055,0.07063082,112440.0,112420.0,0.34225724]
[1756428743195,0.00204,112430.0,112420.0,0.52030274]
[1756428743602,0.00204,112430.0,112420.0,0.52344274]
[1756428743840,0.00204,112430.0,112420.0,0.17804752]
[1756428744048,0.00204,112430.0,112420.0,0.52030476]
[1756428744261,0.00204,112430.0,112420.0,0.34240048]
[1756428744406,0.00204,112430.0,112420.0,0.52030476]
[1756428745008,0.00204,112430.0,112420.0,0.52559476]
[1756428745339,0.00204,112430.0,112420.0,0.52659476]
[1756428745544,0.00204,112430.0,112420.0,0.52444476]
[1756428745747,0.00204,112430.0,112420.0,0.52130476]
[1756428746317,0.00204,112430.0,112420.0,0.34340048]
[1756428746544,0.00204,112430.0,112420.0,0.52130476]
[1756428748582,0.00204,112430.0,112420.0,0.52444476]
[1756428749330,0.00204,112430.0,112420.0,0.52659476]
[1756428750696,0.366749,112440.0,112420.0,0.52659476]
[1756428750903,0.6311933,112440.0,112420.0,0.52659476]
[1756428751272,0.60840532,112440.0,112430.0,0.00314]
[1756428751711,0.61044532,112440.0,112430.0,0.00529]
[1756428751981,0.61144532,112440.0,112430.0,0.00314]
[1756428752116,0.61144532,112440.0,112430.0,0.00529]
[1756428752548,0.61144532,112440.0,112420.0,0.52444476]
[1756428752748,0.00184,112430.0,112420.0,0.00014324]
[1756428752955,0.42829632,112430.0,112420.0,0.00014324]
[1756428753129,0.43033632,112430.0,112420.0,0.00014324]
[1756428753327,0.61036732,112430.0,112420.0,0.00014324]
[1756428753546,0.69866364,112430.0,112420.0,0.00014324]
[1756428754317,0.69866364,112430.0,112420.0,0.00114324]
[1756428754425,0.61036732,112430.0,112420.0,0.00114324]
[1756428755751,0.61036732,112430.0,112420.0,0.00014324]
[1756428756362,0.63500491,112430.0,112420.0,0.00014324]
[1756428756658,0.47988491,112430.0,112420.0,0.00014324]
[1756428756797,0.63312481,112430.0,112420.0,0.00014324]
[1756428757224,0.63400481,112430.0,112420.0,0.00014324]
[1756428758503,0.48088481,112430.0,112420.0,0.00014324]
[1756428758709,0.63396481,112430.0,112420.0,0.00543324]
[1756428758891,0.63397102,112430.0,112420.0,0.00543324]
[1756428761102,0.027751,112430.0,112420.0,0.52559476]
[1756428761319,0.029731,112430.0,112420.0,0.15310324]
[1756428761541,0.029731,112430.0,112420.0,0.00014324]
[1756428761988,0.029731,112430.0,112420.0,0.18118752]
[1756428762195,0.029731,112430.0,112420.0,0.18333752]
[1756428762403,0.05255235,112430.0,112420.0,0.18333752]
[1756428762839,0.05255235,112430.0,112420.0,0.00014324]
[1756428763043,0.57140223,112430.0,112420.0,0.00014324]
[1756428763299,0.59052727,112430.0,112420.0,0.00014324]
[1756428763536,0.24827003,112430.0,112420.0,0.00014324]
[1756428764370,0.40107003,112430.0,112420.0,0.00014324]
[1756428764798,0.31277371,112430.0,112420.0,0.00014324]
[1756428765858,0.31278479,112430.0,112420.0,0.00014324]
[1756428766634,0.65504203,112430.0,112420.0,0.00014324]
[1756428767330,0.65500203,112430.0,112420.0,0.00014324]
[1756428769384,0.65500958,112430.0,112420.0,0.00014324]
[1756428770080,0.65501679,112430.0,112420.0,0.00014324]
[1756428770259,0.50225711,112430.0,112420.0,0.00014324]
[1756428770479,0.65489711,112430.0,112420.0,0.00014324]
[1756428771361,0.65489711,112430.0,112420.0,0.00540324]
[1756428771564,0.65489711,112430.0,112420.0,0.00331324]
[1756428771748,0.65489711,112430.0,112420.0,0.00014324]
[1756428773330,0.31061987,112430.0,112420.0,0.18330752]
[1756428773822,0.22232355,112430.0,112420.0,0.18330752]
[1756428776027,0.65485711,112430.0,112420.0,0.00014324]
[1756428776243,0.65287711,112430.0,112420.0,0.18330752]
[1756428776375,0.56458079,112430.0,112420.0,0.18330752]
[1756428777261,0.56458079,112430.0,112420.0,0.00540324]
[1756428777439,0.56458079,112430.0,112420.0,0.18330752]
[1756428778042,0.56656079,112430.0,112420.0,0.00540324]
[1756428778241,0.65485711,112430.0,112420.0,0.00540324]
[1756428778561,0.31061987,112430.0,112420.0,0.00540324]
[1756428778794,0.65287711,112430.0,112420.0,0.00540324]
[1756428779626,0.63626065,112430.0,112420.0,0.00540324]
[1756428779834,0.65487336,112430.0,112420.0,0.00540324]
[1756428780627,0.65487434,112430.0,112420.0,0.00540324]
[1756428781429,0.8346628,112430.0,112420.0,0.00014324]
[1756428781634,0.6806491,112430.0,112420.0,0.00014324]
[1756428782279,0.68065033,112430.0,112420.0,0.00014324]
[1756428782504,0.85853879,112430.0,112420.0,0.00014324]
[1756428782627,1.19853879,112430.0,112420.0,0.00014324]
[1756428782850,1.10894665,112430.0,112420.0,0.00014324]
[1756428784325,6.15159638,112430.0,112420.0,0.00014324]
[1756428784548,6.17350379,112430.0,112420.0,0.00014324]
[1756428785178,6.17250379,112430.0,112420.0,0.00014324]
[1756428785390,6.12678999,112430.0,112420.0,0.00014324]
[1756428785606,6.17450379,112430.0,112420.0,0.00014324]
[1756428786272,6.12678999,112430.0,112420.0,0.00014324]
[1756428786719,6.17650379,112430.0,112420.0,0.00014324]
[1756428787012,6.12878999,112430.0,112420.0,0.00014324]
[1756428787215,6.47104723,112430.0,112420.0,0.00014324]
[1756428789082,6.47102704,112430.0,112420.0,0.00014324]
[1756428790091,6.46246243,112430.0,112420.0,0.00014324]
[1756428790561,6.47102704,112430.0,112420.0,0.00014324]
[1756428790993,6.49711343,112430.0,112420.0,0.00014324]
[1756428791215,6.67500189,112430.0,112420.0,0.00014324]
[1756428791636,6.49711343,112430.0,112420.0,0.00014324]
[1756428792109,6.57266253,112430.0,112420.0,0.00014324]
[1756428793125,6.75055099,112430.0,112420.0,0.00014324]
[1756428793287,6.7186775,112430.0,112420.0,0.00014324]
[1756428793494,6.54050904,112430.0,112420.0,0.00014324]
[1756428794160,6.7183975,112430.0,112420.0,0.00014324]
[1756428794360,6.75026873,112430.0,112420.0,0.00014324]
[1756428794797,6.79079849,112430.0,112420.0,0.00014324]
[1756428794997,6.61291003,112430.0,112420.0,0.00014324]
[1756428795173,6.86173731,112430.0,112420.0,0.00014324]
[1756428795375,6.87986608,112430.0,112420.0,0.00014324]
[1756428795745,6.89589138,112430.0,112420.0,0.00014324]
[1756428796073,6.89587188,112430.0,112420.0,0.00014324]
[1756428797289,6.83213278,112430.0,112420.0,0.00014324]
[1756428797519,6.83205278,112430.0,112420.0,0.00014324]
[1756428797731,6.74327188,112430.0,112420.0,0.00014324]
[1756428798140,6.98951188,112430.0,112420.0,0.00014324]
[1756428798347,6.89575188,112430.0,112420.0,0.00014324]
[1756428799730,7.23798679,112430.0,112420.0,0.00014324]
[1756428799883,1.02451448,112390.0,112380.0,0.09809]
[1756428800088,1.05337887,112390.0,112380.0,0.09856897]
[1756428800520,1.39563611,112390.0,112380.0,0.09547897]
[1756428800693,1.42239811,112390.0,112380.0,0.09856897]
[1756428800912,1.42239811,112390.0,112380.0,0.09547897]
[1756428801085,1.42239811,112390.0,112380.0,0.09647897]
[1756428801302,1.42239811,112390.0,112380.0,0.10156897]
[1756428801512,1.42239811,112390.0,112380.0,0.09847897]
[1756428802113,0.92754087,112390.0,112380.0,0.09747897]
[1756428802314,0.99188455,112390.0,112380.0,0.09747897]
[1756428802971,0.99188455,112390.0,112380.0,0.09547897]
[1756428803392,0.84124455,112390.0,112380.0,0.09751897]
[1756428803703,0.65404455,112390.0,112380.0,0.09751897]
[1756428803908,0.65600455,112390.0,112380.0,0.10060897]
[1756428804314,0.65700455,112390.0,112380.0,0.10060897]
[1756428804522,0.73030547,112390.0,112380.0,0.10060897]
[1756428804684,0.72930547,112390.0,112380.0,0.10060897]
[1756428805071,0.73030547,112390.0,112380.0,0.10060897]
[1756428806293,1.07029487,112390.0,112380.0,0.10060897]
[1756428806506,1.07029015,112390.0,112380.0,0.10060897]
[1756428808016,0.99698923,112390.0,112380.0,0.10060897]
[1756428808609,0.84422923,112390.0,112380.0,0.10060897]
[1756428808798,0.95349541,112390.0,112380.0,0.10060897]
[1756428809038,0.80089541,112390.0,112380.0,0.10060897]
[1756428809226,0.95361541,112390.0,112380.0,0.27857657]
[1756428809524,0.9473986,112390.0,112380.0,0.27857657]
[1756428809765,0.70638228,112390.0,112380.0,0.27857657]
[1756428809941,0.36412504,112390.0,112380.0,0.27857657]
[1756428810154,0.70238228,112390.0,112380.0,0.27857657]
[1756428810964,0.36012504,112390.0,112380.0,0.27857657]
[1756428811168,0.70238228,112390.0,112380.0,0.27957657]
[1756428811456,0.70138228,112390.0,112380.0,0.27957657]
[1756428812026,0.85406228,112390.0,112380.0,0.27957657]
[1756428812492,0.85406228,112390.0,112380.0,0.28057657]
[1756428814866,0.86028506,112390.0,112380.0,0.28057657]
[1756428815066,0.87065637,112390.0,112380.0,0.28057657]
[1756428815275,0.35912504,112390.0,112380.0,0.28057657]
[1756428816077,0.01912504,112390.0,112380.0,0.28057657]
[1756428816713,0.83489724,112400.0,112390.0,0.17795177]
[1756428817010,0.87685022,112400.0,112390.0,0.18308177]
[1756428817757,0.53459298,112400.0,112390.0,0.18308177]
[1756428817955,0.53459639,112400.0,112390.0,0.18308177]
[1756428818237,0.87685363,112400.0,112390.0,0.18308177]
[1756428819816,0.96514995,112400.0,112390.0,0.18308177]
[1756428820807,0.87685561,112400.0,112390.0,0.18308177]
[1756428821981,0.83717573,112400.0,112390.0,0.18308177]
[1756428823482,0.83913573,112400.0,112390.0,0.18308177]
[1756428823697,0.53861561,112400.0,112390.0,0.00309]
[1756428823976,0.87861561,112400.0,112390.0,0.00513]
[1756428824196,0.87861561,112400.0,112390.0,0.18308177]
[1756428824400,0.53439837,112400.0,112390.0,0.18308177]
[1756428824530,0.87861561,112400.0,112390.0,0.17795177]
[1756428824742,0.87861561,112400.0,112390.0,0.18104177]
[1756428824938,0.96691193,112400.0,112390.0,0.18308177]
[1756428825563,0.96691193,112400.0,112390.0,0.17795177]
[1756428825769,0.96691193,112400.0,112390.0,0.18308177]
[1756428826346,0.62465469,112400.0,112390.0,0.17795177]
[1756428826546,0.96691193,112400.0,112390.0,0.17795177]
[1756428826750,0.87665561,112400.0,112390.0,0.17999177]
[1756428826925,0.53439837,112400.0,112390.0,0.18308177]
[1756428827125,0.87665561,112400.0,112390.0,0.18308177]
[1756428827530,0.86005507,112400.0,112390.0,0.18308177]
[1756428827795,0.87666541,112400.0,112390.0,0.18308177]
[1756428828603,0.87666494,112400.0,112390.0,0.18308177]
[1756428829242,0.87864494,112400.0,112390.0,0.18308177]
[1756428830048,0.87666494,112400.0,112390.0,0.18308177]
[1756428831061,0.87864494,112400.0,112390.0,0.18308177]
[1756428831199,0.87241607,112400.0,112390.0,0.18308177]
[1756428831407,0.87864806,112400.0,112390.0,0.18308177]
[1756428832487,0.53441082,112400.0,112390.0,0.18308177]
[1756428832838,0.87666806,112400.0,112390.0,0.18308177]
[1756428833052,0.87864806,112400.0,112390.0,0.18308177]
[1756428833527,0.87864806,112400.0,112390.0,0.17795177]
[1756428833697,0.34,112390.0,112380.0,0.27344657]
[1756428833872,0.84080938,112390.0,112380.0,0.27344657]
[1756428834092,0.84278938,112390.0,112380.0,0.09547897]
[1756428834452,0.84278938,112390.0,112380.0,0.27876657]
[1756428834804,0.84278938,112390.0,112380.0,0.10079897]
[1756428834950,0.94129334,112390.0,112380.0,0.09547897]
[1756428835157,1.4005069,112390.0,112380.0,0.09547897]
[1756428835413,1.05824966,112390.0,112380.0,0.09547897]
[1756428836675,0.65139939,112390.0,112380.0,0.09547897]
[1756428836878,0.65365663,112390.0,112380.0,0.09647897]
[1756428837048,0.65555663,112390.0,112380.0,0.09647897]
[1756428837255,1.06625387,112390.0,112380.0,0.09547897]
[1756428837411,1.15455019,112390.0,112380.0,0.09547897]
[1756428837622,1.15555019,112390.0,112380.0,0.09547897]
[1756428837851,1.18538549,112390.0,112380.0,0.09547897]
[1756428838086,1.17915649,112390.0,112380.0,0.09547897]
[1756428838212,1.18539087,112390.0,112380.0,0.09547897]
[1756428838824,1.52539087,112390.0,112380.0,0.09547897]
[1756428839954,0.84087639,112390.0,112380.0,0.09547897]
[1756428840154,1.52539087,112390.0,112380.0,0.09547897]
[1756428841109,1.52538295,112390.0,112380.0,0.09547897]
[1756428841737,1.55146502,112390.0,112380.0,0.09547897]
[1756428842621,6.55146502,112390.0,112380.0,0.09547897]
[1756428843360,6.39910502,112390.0,112380.0,0.09547897]
[1756428843763,6.55154502,112390.0,112380.0,0.09547897]
[1756428844151,5.71269054,112390.0,112380.0,0.09547897]
[1756428844359,6.25499133,112390.0,112380.0,0.09547897]
[1756428844657,5.72493685,112390.0,112380.0,0.09547897]
[1756428844840,6.40945133,112390.0,112380.0,0.09547897]
[1756428845061,6.43679712,112390.0,112380.0,0.09547897]
[1756428845697,6.46463242,112390.0,112380.0,0.09547897]
[1756428845904,6.55292874,112390.0,112380.0,0.09547897]
[1756428846967,6.5768399,112390.0,112380.0,0.09547897]
[1756428847343,6.57681512,112390.0,112380.0,0.09547897]
[1756428848014,5.89230064,112390.0,112380.0,0.09547897]
[1756428848210,6.57681436,112390.0,112380.0,0.09547897]
[1756428849196,6.42425436,112390.0,112380.0,0.09547897]
[1756428849402,6.60957317,112390.0,112380.0,0.09547897]
[1756428851046,6.60953317,112390.0,112380.0,0.09547897]
[1756428852313,6.26953317,112390.0,112380.0,0.09547897]
[1756428852722,6.61809778,112390.0,112380.0,0.09547897]
[1756428854844,6.61801778,112390.0,112380.0,0.09547897]
[1756428855548,6.46465778,112390.0,112380.0,0.09547897]
[1756428855761,6.27797778,112390.0,112380.0,0.09547897]
[1756428856376,6.59406662,112390.0,112380.0,0.09547897]
[1756428857027,6.29536921,112390.0,112380.0,0.09547897]
[1756428857256,6.44880921,112390.0,112380.0,0.09547897]
[1756428857664,6.45070823,112390.0,112380.0,0.09547897]
[1756428857876,6.45070359,112390.0,112380.0,0.09547897]
[1756428858360,6.44896359,112390.0,112380.0,0.09547897]
[1756428858580,6.53725991,112390.0,112380.0,0.09547897]
[1756428859815,6.38365991,112390.0,112380.0,0.09547897]
[1756428860025,6.53725991,112390.0,112380.0,0.09547897]
[1756428860984,6.53717991,112390.0,112380.0,0.09547897]
[1756428861390,6.58493813,112390.0,112380.0,0.09547897]
[1756428861585,6.49218024,112390.0,112380.0,0.09547897]
[1756428861834,6.43649636,112390.0,112380.0,0.09547897]
[1756428861974,6.46326336,112390.0,112380.0,0.09547897]
[1756428862194,6.49109866,112390.0,112380.0,0.09547897]
[1756428862696,6.52293747,112390.0,112380.0,0.09547897]
[1756428863507,6.52637011,112390.0,112380.0,0.09547897]
[1756428866204,6.52621011,112390.0,112380.0,0.09547897]
[1756428867469,6.75416188,112390.0,112380.0,0.09547897]
[1756428868073,6.73757742,112390.0,112380.0,0.09547897]
[1756428868290,6.75420635,112390.0,112380.0,0.09547897]
[1756428869451,6.80196457,112390.0,112380.0,0.09547897]
[1756428870730,6.77012576,112390.0,112380.0,0.09547897]
[1756428871906,6.7702688,112390.0,112380.0,0.04732472]
[1756428872140,5.88449306,112390.0,112380.0,0.04732472]
[1756428872326,6.51694998,112390.0,112380.0,0.04732472]
[1756428872752,6.51694998,112390.0,112380.0,0.05050472]
[1756428873106,5.54089918,112390.0,112380.0,0.05257472]
[1756428873309,6.39872263,112390.0,112380.0,0.05257472]
[1756428873737,6.41788434,112390.0,112380.0,0.05050472]
[1756428874247,6.26464434,112390.0,112380.0,0.05257472]
[1756428874441,6.21674007,112390.0,112380.0,0.05257472]
[1756428874667,6.37018007,112390.0,112380.0,0.05257472]
[1756428874831,6.45847639,112390.0,112380.0,0.05257472]
[1756428875228,6.30503639,112390.0,112380.0,0.05257472]
[1756428875504,6.45843639,112390.0,112380.0,0.05257472]
[1756428876031,6.30503639,112390.0,112380.0,0.05257472]
[1756428876319,6.5063488,112390.0,112380.0,0.05257472]
[1756428878334,6.45843639,112390.0,112380.0,0.05257472]
[1756428878511,6.45843639,112390.0,112380.0,0.04732472]
[1756428878753,6.45845001,112390.0,112380.0,0.04732472]
[1756428878943,6.63640178,112390.0,112380.0,0.04732472]
[1756428879192,6.45845001,112390.0,112380.0,0.04732472]
[1756428879395,6.45845001,112390.0,112380.0,0.05050472]
[1756428880334,6.5063737,112390.0,112380.0,0.05050472]
[1756428880937,6.53371949,112390.0,112380.0,0.05050472]
[1756428881424,6.53371949,112390.0,112380.0,0.05257472]
[1756428881594,6.26467738,112390.0,112380.0,0.05257472]
[1756428881748,6.43369279,112390.0,112380.0,0.05257472]
[1756428881952,6.28049279,112390.0,112380.0,0.05257472]
[1756428882173,6.43361512,112390.0,112380.0,0.05257472]
[1756428883042,6.28049512,112390.0,112380.0,0.05257472]
[1756428883341,6.36991602,112390.0,112380.0,0.05257472]
[1756428883760,6.36135141,112390.0,112380.0,0.05257472]
[1756428883953,6.44964773,112390.0,112380.0,0.05257472]
[1756428884526,6.36135141,112390.0,112380.0,0.05257472]
[1756428885535,5.72694738,112390.0,112380.0,0.23054232]
[1756428885748,5.75890555,112390.0,112380.0,0.05257472]
[1756428885959,6.05097234,112390.0,112380.0,0.05257472]
[1756428887017,6.05098084,112390.0,112380.0,0.05257472]
[1756428887816,6.13927716,112390.0,112380.0,0.05257472]
[1756428888258,6.16323182,112390.0,112380.0,0.05257472]
[1756428888418,6.0749355,112390.0,112380.0,0.05257472]
[1756428888638,6.0751355,112390.0,112380.0,0.23054232]
[1756428888847,5.57606194,112390.0,112380.0,0.23054232]
[1756428889050,5.52971887,112390.0,112380.0,0.23054232]
[1756428889247,5.86240106,112390.0,112380.0,0.23054232]
[1756428890202,5.86239458,112390.0,112380.0,0.23054232]
[1756428890409,0.90430341,112390.0,112380.0,0.23154232]
[1756428891688,0.99259973,112390.0,112380.0,0.05357472]
[1756428891866,1.42315329,112390.0,112380.0,0.05357472]
[1756428892016,6.42315329,112390.0,112380.0,0.05346472]